Cogmind - Beta 10.1 @@@ ROGUE MODE // 2020.10.10 @ 11:02:20 Player: Pimski Result: Destroyed by Light Fission Core chain reaction Performance ------------- Evolutions (0) 0 Regions Visited (3) 600 Robots Destroyed (10) 50 Value Destroyed (135) 135 Prototype IDs (23) 460 Alien Tech Used (0) 0 Bonus (243) 243 TOTAL SCORE: 1488 Bonus ------- Aligned with FarCom 300 Friendly Fire -57 Cogmind --------- Core Integrity 0/250 Matter 290/300 Energy 99/100 System Corruption 0% Temperature Cool (12) Movement Core (50) Location -10/Exiles Parts ------- > --- POWER (1) -------- (None) > --- PROPULSION (2) --- (None) > --- UTILITY (2) ------ (None) > --- WEAPON (2) ------- (None) > --- INVENTORY (4) ---- Wheel Medium Storage Unit High-capacity Storage Unit Superbattery (2000) Peak State ------------ > --- POWER ------------ Light Ion Engine > --- PROPULSION ------- Light Treads Light Treads > --- UTILITY ---------- High-capacity Storage Unit High-capacity Storage Unit > --- WEAPON ----------- Medium Laser Light Assault Rifle > --- INVENTORY -------- Wheel Small Storage Unit Medium Storage Unit Medium Storage Unit Large Storage Unit Large Storage Unit Large Storage Unit High-capacity Storage Unit Superbattery High-capacity Matter Pod PSU Rigger Assault Rifle Proton Bomb Trap Proton Bomb Trap Proton Bomb Trap Proton Bomb Trap [Rating: 11] Favorites ----------- Power Light Ion Engine Engine Light Ion Engine Propulsion Light Treads Treads Light Treads Leg Aluminum Leg Utility High-capacity Storage Unit Device Improved Terrain Scanner Storage High-capacity Storage Unit Weapon Medium Laser Energy Gun Medium Laser Ballistic Gun Light Assault Rifle Build | -11 -10 -10 -10 ------- Run | Scr Mat Min Exi Slots Evolved . | . . . . Power . | . . . . Propulsion . | . . . . Utility . | . . . . Weapon . | . . . . Parts Attached 12 | 2 2 2 6 Power 1 | . 1 . . Engine 1 | . 1 . . Core . | . . . . Reactor . | . . . . Propulsion 3 | . . 2 1 Treads 3 | . . 2 1 Leg . | . . . . Wheel . | . . . . Hover . | . . . . Flight . | . . . . Utility 6 | 2 . . 4 Device 2 | 2 . . . Storage 4 | . . . 4 Processor . | . . . . Hackware . | . . . . Protection . | . . . . Artifact . | . . . . Weapon 2 | . 1 . 1 Energy Gun . | . . . . Energy Cannon . | . . . . Ballistic Gun 2 | . 1 . 1 Ballistic Cannon . | . . . . Launcher . | . . . . Special Weapon . | . . . . Impact Weapon . | . . . . Slashing Weapon . | . . . . Piercing Weapon . | . . . . Special Melee Weapon . | . . . . Unidentified Prototypes . | . . . . Parts Lost 5 | . . . 5 Power 1 | . . . 1 Propulsion 2 | . . . 2 Utility . | . . . . Weapon 2 | . . . 2 Highest Loss Streak 5 | . . . 5 Average Slot Usage (%) 96 | . 100 100 95 Engine 13 | . 14 14 13 Treads 20 | . . 10 26 Leg 5 | . 28 17 . Device 5 | . 14 14 2 Storage 22 | . 14 14 25 Energy Gun 13 | . 17 14 13 Ballistic Gun 13 | . 10 14 14 Naked Turns 28 | . . . 28 Heaviest Build 70 | 11 11 11 70 Greatest Support 40 | 20 20 40 40 Greatest Overweight (x) 1 | . . . 1 Average Overweight (x) . | . . . . Largest Inventory Capacity 20 | 6 6 6 20 Average Capacity 13 | 6 6 6 16 Most Carried 17 | 6 6 6 17 Average Carried 10 | 6 5 5 12 Final Capacity 6 | 6 6 6 4 Final Carried 6 | 6 6 6 4 Class Distribution -------------------- 49% | Mutant 30% | Hauler-Mutant 19% | Trapper-Mutant Dominant Class ---------------- Mutant | -10/Materials Mutant | -10/Mines Hauler-Mutant | -10/Exiles Resources | -11 -10 -10 -10 ----------- Run | Scr Mat Min Exi Matter Collected 376 | 220 30 20 106 Remotely 10 | 10 . . . Salvage Created 304 | 110 115 . 79 Parts 17 | 6 11 . . Haulers Intercepted . | . . . . Recyclers Shooed . | . . . . Parts Field Recycled . | . . . . Retrieved Matter . | . . . . Parts Self-Destructed . | . . . . Prevented . | . . . . Kills | -11 -10 -10 -10 ------- Run | Scr Mat Min Exi Combat Hostiles Destroyed 7 | . 3 . 4 Guns 7 | . 3 . 4 Classes Destroyed 4 | 2 1 . 1 Tunneler 2 | 2 . . . Recycler 1 | 1 . . . Grunt 3 | . 3 . . Assembled 4 | . . . 4 Best Kill Streak 4 | 2 3 . 4 Combat Bots Only 4 | . 3 . 4 Max Kills in Single Turn 1 | 1 1 . 1 Gunslinging . | . . . . Exploded . | . . . . Melee . | . . . . Uniques/NPCs Destroyed . | . . . . Combat | -11 -10 -10 -10 -------- Run | Scr Mat Min Exi Damage Taken 978 | . 81 . 897 Core 251 | . . . 251 Absorbed by Shields . | . . . . Core Remaining (%) 100 | 100 . . . Volleys Fired 42 | 5 10 . 27 Largest 2 | 2 2 . 2 Hottest 90 | 90 70 . 70 Shots Fired 83 | 10 20 . 53 Gun 83 | 10 20 . 53 Cannon . | . . . . Launcher . | . . . . Special . | . . . . Kinetic 49 | . 10 . 39 Thermal 34 | 10 10 . 14 Explosive . | . . . . Electromagnetic . | . . . . Robot Hit Streak 14 | 3 8 . 14 Robot Miss Streak 3 | 2 2 . 3 Penetration Max . | . . . . Secondary Targets 2 | . . . 2 Max Gunslinging Chain 1 | . . . 1 Shots Hit Robots 59 | 5 13 . 41 Core Hits 22 | 4 8 . 10 Critical Hits . | . . . . Critical Kills . | . . . . Critical Parts Destroyed . | . . . . Melee Attacks . | . . . . Impact . | . . . . Slashing . | . . . . Piercing . | . . . . Sneak Attacks . | . . . . Combat Hostiles . | . . . . Follow-up Attacks . | . . . . Damage Inflicted 631 | 81 120 . 430 Guns 631 | 81 120 . 430 Cannons . | . . . . Explosions . | . . . . Melee . | . . . . Ramming . | . . . . Kinetic 347 | . 44 . 303 Thermal 284 | 81 76 . 127 Explosive . | . . . . Electromagnetic . | . . . . Impact . | . . . . Slashing . | . . . . Piercing . | . . . . Highest Corruption . | . . . . Average Corruption . | . . . . Corruption Purged . | . . . . Overload Shots . | . . . . Overflow Damage . | . . . . Projectiles . | . . . . Explosions . | . . . . Melee . | . . . . Knockbacks . | . . . . Impact . | . . . . Kinetic . | . . . . Secondary . | . . . . Self-Inflicted Damage . | . . . . Shots . | . . . . Rammed . | . . . . Targets Rammed . | . . . . Kicked . | . . . . Crushed . | . . . . Highest Temperature 260 | 60 143 . 260 Average Temperature 83 | 28 56 . 114 Received Heat Transfer 168 | . 48 . 120 Siege Activations . | . . . . Robots Corrupted . | . . . . Combat Hostiles . | . . . . Parts Fried . | . . . . Impact Corruptions . | . . . . Robots Melted . | . . . . Combat Hostiles . | . . . . Parts Melted 1 | 1 . . . Heat Transferred 815 | 223 222 . 370 Parts Sabotaged . | . . . . Parts Stolen . | . . . . Parts Stripped . | . . . . Power Chain Reactions . | . . . . Missiles Intercepted . | . . . . Alert | -11 -10 -10 -10 ------- Run | Scr Mat Min Exi Peak Influence 104 | 15 104 40 . Initial 40 | . 9 40 . Average 39 | 9 53 40 . Maximum Alert Level . | . . . . Low Security (%) 100 | 100 100 100 . Level 1 . | . . . . Level 2 . | . . . . Level 3 . | . . . . Level 4 . | . . . . Level 5 . | . . . . High Security . | . . . . Max Security . | . . . . Squads Dispatched 3 | . 3 . . Investigation . | . . . . Extermination . | . . . . Reinforcement 3 | . 3 . . Assault . | . . . . Garrison . | . . . . Intercept . | . . . . Construction Impeded . | . . . . Haulers Reinforced . | . . . . Stealth | -11 -10 -10 -10 --------- Run | Scr Mat Min Exi Distress Signals . | . . . . Communications Jammed . | . . . . Distress Signals . | . . . . Times Spotted 13 | . 7 . 6 Peak Tracking Total 7 | . 3 . 7 Tactical Retreats . | . . . . Traps | -11 -10 -10 -10 ------- Run | Scr Mat Min Exi Traps Triggered . | . . . . Indirectly . | . . . . Trap Hack Attempts . | . . . . Triggered . | . . . . Disarmed . | . . . . Reprogrammed . | . . . . Reused 3 | . . . 3 Traps Extracted . | . . . . Installed 5 | . . 1 4 Triggered . | . . . . Machines | -11 -10 -10 -10 ---------- Run | Scr Mat Min Exi Machines Disabled . | . . . . Max in Single Turn . | . . . . Machines Sabotaged . | . . . . Garrisons Compromised . | . . . . Overloaded Fab Kills . | . . . . Fab Network Shutdowns . | . . . . Hacking | -11 -10 -10 -10 --------- Run | Scr Mat Min Exi Machines Accessed 2 | . . . 2 Terminals . | . . . . Fabricators . | . . . . Repair Stations . | . . . . Recycling Units . | . . . . Scanalyzers . | . . . . Garrison Access . | . . . . Total Hacks 2 | . . . 2 Successful 2 | . . . 2 Failed . | . . . . Catastrophic . | . . . . Database Lockouts . | . . . . Manual 1 | . . . 1 Terminals . | . . . . Fabricators . | . . . . Repair Stations . | . . . . Recycling Units . | . . . . Scanalyzers . | . . . . Garrison Access . | . . . . Terminal Hacks 2 | . . . 2 Record 1 | . . . 1 EX-Prototype ID Bank 1 | . . . 1 Fabricator Hacks . | . . . . Repair Station Hacks . | . . . . Recycling Unit Hacks . | . . . . Scanalyzer . | . . . . Garrison Access Hacks . | . . . . Unauthorized Hacks . | . . . . Terminals . | . . . . Fabricators . | . . . . Repair Stations . | . . . . Recycling Units . | . . . . Scanalyzers . | . . . . Garrison Access . | . . . . Data Cores Recovered . | . . . . Used . | . . . . Hacking Detections . | . . . . Full Trace Events . | . . . . Feedback Events . | . . . . Feedback Blocked . | . . . . Robot Schematics Acquired . | . . . . Robots Built . | . . . . Matter . | . . . . Time . | . . . . Total Robot Build Rating . | . . . . Part Schematics Acquired . | . . . . Parts Built . | . . . . Matter . | . . . . Time . | . . . . Total Part Build Rating . | . . . . Parts Repaired . | . . . . Time . | . . . . Parts Recycled . | . . . . Recycled Matter . | . . . . Retrieved Matter . | . . . . Retrieved Components . | . . . . Parts Scanalyzed . | . . . . Part Schematics Acquired . | . . . . Parts Damaged . | . . . . Bothacking | -11 -10 -10 -10 ------------ Run | Scr Mat Min Exi Used RIF Installer . | . . . . Robots Hacked . | . . . . Non-combat . | . . . . Combat . | . . . . Robot Hacks Applied . | . . . . Relay Couplers Released . | . . . . Robots Rewired . | . . . . Allies Hacked . | . . . . Hacks Repelled . | . . . . Allies | -11 -10 -10 -10 -------- Run | Scr Mat Min Exi Total Allies . | . . . . Largest Group . | . . . . Highest-Rated Group . | . . . . Highest-Rated Ally . | . . . . Total Orders . | . . . . Ally Attacks . | . . . . Total Damage . | . . . . Kills . | . . . . Allies Corrupted . | . . . . Allies Melted . | . . . . Intel | -11 -10 -10 -10 ------- Run | Scr Mat Min Exi Robot Analysis Total . | . . . . Derelict Logs Recovered 1 | . . 1 . Drone Launches . | . . . . Drone Recoveries . | . . . . Exploration | -11 -10 -10 -10 ------------- Run | Scr Mat Min Exi Turns Passed 1443 | 72 152 211 1008 Spaces Moved 775 | 22 86 153 514 Core 56 | . . . 56 Treads 506 | . . 48 458 Legs 213 | 22 86 105 . Wheels . | . . . . Hover . | . . . . Flight . | . . . . Fastest Speed 50 | 120 120 120 50 Average Speed 148 | 120 120 132 159 Slowest Speed 180 | 120 120 160 180 Overloaded Moves . | . . . . Propulsion Burnouts . | . . . . Robots Hopped . | . . . . Cave-ins Triggered . | . . . . Exploration Rate (%) 29 | 4 24 22 68 Regions Visited 3 Branch Regions 2 Pre-discovered Areas 1 | . . . 1 Known Exits Taken . | . . . . Unknown Exits Taken 3 | 1 1 1 . Scrap Searched 2 | . . 2 . Spaces Dug . | . . . . Terrain Destroyed . | . . . . Melee . | . . . . Projectile . | . . . . AOE . | . . . . Terrain Rammed . | . . . . Walls Destroyed . | . . . . Machines Disabled . | . . . . Actions | -11 -10 -10 -10 --------- Run | Scr Mat Min Exi Total 994 | 57 117 163 657 Wait 126 | 28 16 . 82 Move 772 | 21 85 152 514 Hop . | . . . . Pick Up 14 | . 2 4 8 Fast Attach 4 | 2 . . 2 Attach 2 | . . 2 . Detach . | . . . . Swap 6 | . 2 . 4 Drop 23 | 1 2 4 16 Fire 42 | 5 10 . 27 Melee . | . . . . Ram . | . . . . Kick . | . . . . Crush . | . . . . Escape Stasis . | . . . . Rewire . | . . . . Trap 5 | . . 1 4 Miscellaneous . | . . . . Route ------- -11/Scrapyard -10/Materials -10/Mines -10/Exiles History --------- Turn | Location | Event 7 | -11/Scrapyard | Discovered new exit (range 3) 73 | -11/Scrapyard | Entered Materials 90 | -10/Materials | Discovered new exit (range 5) 186 | -10/Materials | Met 8R-AWN 225 | -10/Materials | Entered Mines 227 | -10/Mines | Followed 8R-AWN into the Mines 240 | -10/Mines | Learned Materials terminal intel 246 | -10/Mines | Found a hidden stash of uninstalled traps 252 | -10/Mines | Met a Derelict bent on vengeance 295 | -10/Mines | Discovered new exit (range 5) 317 | -10/Mines | Build established: Mutant 436 | -10/Mines | Entered Exiles 476 | -10/Exiles | Welcomed by 8R-AWN 500 | -10/Exiles | Met EX-HEX 614 | -10/Exiles | Met EX-DEC 640 | -10/Exiles | Learned location of Zion (-6) 821 | -10/Exiles | Met EX-BIN 846 | -10/Exiles | Aligned with FarCom system 848 | -10/Exiles | Given EX-Vault access code 889 | -10/Exiles | Opened EX-Vault 900 | -10/Exiles | Found PSU Rigger 905 | -10/Exiles | Found Superbattery 913 | -10/Exiles | Found Skeleton Box 954 | -10/Exiles | Warned to stay clear of 0b10 Research branches 1026 | -10/Exiles | Learned about 8R-AWN's background 1323 | -10/Exiles | Attacked by the Exiles 1415 | -10/Exiles | Core integrity fell below 50% 1441 | -10/Exiles | Lost 5 parts (1p2n2w) 1444 | -10/Exiles | Destroyed by Light Fission Core chain reaction Last Messages --------------- 01408_ Critical hit. 01408_ Assault Rifle destroyed. 01408_ HV Slug penetrates Earth. 01410_ Penetrated by HV Slug. 01410_ Lgt. Assault Rifle destroyed. 01411_ Dropped Lrg. Storage Unit. 01412_ Penetrated by HV Slug. 01412_ Dropped Sml. Storage Unit. 01413_ Dropped Hcp. Storage Unit. 01413_ Dropped Hcp. Matter Pod. 01414_ Dropped Med. Storage Unit. 01414_ Dropped Skeleton Box. 01414_ Penetrated by HV Slug. 01415_ Dropped PSU Rigger. 01415_ Dropped Med. Laser. 01416_ Dropped Hcp. Storage Unit. 01416_ Acquired 11 matter. 01417_ Penetrated by HV Slug. 01417_ Acquired 16 matter. 01444_ Rigged Lgt. Fission Core explodes. Map ----- +----------------------------------------------------+ | " ##????????????????????????????????????????????? | | #????????????????????????????????????????????? | | ###??????????????????????????????????????????? | | #??????????????????????????????????????????? | | #?????????????????????????????????????????????? | | ????????????????????????????????????????? | | ##?????????????????????????????????????????????? | | ##??????????????????????????????????????????????? | | #????????????????????#??????????????????????????? | | #???????????????????????????????????????????????? | | ##??????????????????????????????????? ???????????? | | #?????????????????????????????????#?? ?????????? | | ##?????????????#?#??????????????????? ????????? | | "##???????????????????????##????????# #????????? | | #?????????????????????????#??#??## ##???????? | | ""#????#?????????????#????#??#????# #???????? | | "#???????????#####?#????#????????# #???????? | | "##?????????## #?????????????### ????????? | | ""###???????# #??????#??????## #?????????? | | """#???##?## ##????????????# #?????????? | | "#????### ###????????### #??????????? | | ##???# ########## #??????????? | | ##?## #""""## #????????#??? | | ### * ##??????????? | | ## #??????#???? | | #### @ ###????????? | | ""#?#"""""#### ###???????? | | #"""##?#######??#### * ###?????? | | ######??????????????##### ##????? | | ###???????#?????#????????### #????? | | ##??????????????????????????### #???## | | % #?????????????????????????????### ##???? | | % ##??????????#???????????????????#" ##???? | | ##???????????????????????????????#### ###?? | | #####???????????????????????????????#???# ##? | | ????????????????????????#???????##??????## ## | | ??#??????????#???????????????????????????### | | ???????????#???????????????#???????????????# # | | ?#?????????????????????????????????????????## ## | | ???#??????????????????????????????#?????????#####? | | ?????????????????????????????????????????????????? | | ????????????????????????????????????#????????????? | | #????????????????????????????????????????????????? | | ?????????????????????????????????????????????????? | | ?????????????????????????????????????????????????? | | ?????????????????????????????????????????????????? | | ?????????????????????????????????????????????????? | | ?????????????????????????????????????????????????? | | ????????????????????????????????????#????????????? | | ?????????????????????????????????????????????????? | +----------------------------------------------------+ Best States ------------- Heat Dissipation 25 Energy Generation 10 Energy Capacity 125 Matter Stores 300 Matter Capacity 300 Sight Range 16 Terrain Scan Range 16 Terrain Scan Density 10 Evasion (%) 50 Recoil Reduction 2 Item Schematics ----------------- None Robot Schematics ------------------ None Fabricated ------------ Nothing Alien Tech Used ----------------- None Achievements -------------- None Challenges ------------ None Game ------ Seed XenonThiefSuperbattery Manual? 0 Play Time 00:14:50 Cumulative 760.4 hours Start 2020.10.10 @ 10:44:14 End 2020.10.10 @ 11:02:20 Sessions 1 Manual Loads 0 Difficulty Rogue Special Mode None Game No. 482 Rogue 482 Adventurer 0 Explorer 0 Win Type - Total 112 Types 76/7/8/10/5/1/4/0/1 Lore% 96 Gallery% 94 Achievement% 81 Wizard Run 0 Options --------- ASCII 0 Keyboard 0 Movement Numpad Keybinds 0 Fullscreen 2 Font 18/SmallcapsGlow Map View 76x50 Tactical HUD 1 Map Filters NONE Filters NONE Steam 1 RUN: 730fca7d-858b-43db-bef7-efa16db17aad